fUSD/lending_fUSD_20250419
["ID","MTS","AMOUNT","RATE_DAILY","PERIOD"]
[358391564,1745055032136,-303.76,0.0001989,2]
[358391565,1745055032144,-303.76,0.0001989,2]
[358391566,1745055032154,-303.76,0.0001989,2]
[358391567,1745055032162,-303.76,0.0001989,2]
[358391568,1745055032171,-283.34061262,0.0001989,2]
[358391570,1745055032180,-500.0,0.00019899,2]
[358391572,1745055032189,-672.90622012,0.00019899,2]
[358391574,1745055032198,-552.41315524,0.00019899,2]
[358391575,1745055032207,-954.15775502,0.000199,2]
[358391576,1745055032216,-73354.99123514,0.000199,2]
[358391579,1745055032228,-356830.521,0.000199,2]
[358391580,1745055032239,-12530.15718855,0.000199,2]
[358391581,1745055032249,-22469.84281145,0.000199,2]
[358391582,1745055032260,-136615.62240155,0.000199,2]
[358391584,1745055032271,-4045.45298751,0.000199,2]
[358391586,1745055032283,-2000.08345706,0.000199,2]
[358391589,1745055032298,-410.0612809,0.000199,2]
[358391599,1745055038026,-450391.2812,0.000199,2]
[358391600,1745055038054,-1379.55985399,0.000199,2]
[358391606,1745055041938,-3295666.61147461,0.000199,2]
[358391607,1745055041949,-400.99999998,0.000199,2]
[358391608,1745055041958,-2770.535,0.000199,2]
[358391609,1745055041968,-418.29470015,0.000199,2]
[358391623,1745055045863,-381.54315989,0.000199,2]
[358391625,1745055077811,-505.11109811,0.00019086,2]
[358391626,1745055106468,-291.63813106,0.00018991,2]
[358391627,1745055238837,156.854173,0.000305,30]
[358391628,1745055304484,-439.18104364,0.00032,60]
[358391629,1745055304515,-946.824545,0.00032675,60]
[358391630,1745055304541,-1512.1938,0.00032675,60]
[358391631,1745055304563,-1500.0,0.00032877,120]
[358391632,1745055304589,-190.02,0.00032877,30]
[358391633,1745055304617,-500.0,0.0003324,60]
[358391634,1745055304642,-946.824545,0.0003335,60]
[358391635,1745055304668,-1512.1938,0.0003335,60]
[358391636,1745055304699,-946.824545,0.00034025,60]
[358391637,1745055304728,-1512.1938,0.00034025,60]
[358391638,1745055304753,-156.854173,0.000341,60]
[358391639,1745055304780,-500.0,0.00034336,60]
[358391640,1745055304806,-946.824545,0.000347,60]
[358391641,1745055304832,-165.701359,0.000347,60]
[358391642,1745055304857,-159.573476,0.000347,60]
[358391643,1745055304882,-168.296333,0.000347,60]
[358391644,1745055304907,-1512.1938,0.000347,60]
[358391645,1745055304931,-4000.0,0.00035,60]
[358391646,1745055304955,-170.0,0.00035,120]
[358391647,1745055304978,-12999.36526256,0.0003511,30]
[358391648,1745055305001,-500.0,0.00035432,60]
[358391649,1745055305026,-500.0,0.00036528,60]
[358391650,1745055305050,-190.02,0.00036986,30]
[358391651,1745055305074,-179.82032537,0.000372,120]
[358391652,1745055305099,-200.0,0.000375,32]
[358391653,1745055305122,-200.0,0.000375,32]
[358391654,1745055305145,-331.7563107,0.00037624,60]
[358391655,1745055305169,-263.37136232,0.00038,120]
[358391656,1745055305193,-200.0,0.000385,35]
[358391657,1745055305217,-200.0,0.000385,35]
[358391658,1745055305240,-3852.2753457,0.0003888,120]
[358391659,1745055305264,-200.0,0.000395,39]
[358391660,1745055305288,-200.0,0.000395,39]
[358391661,1745055305318,-174270.03,0.0004,30]
[358391662,1745055305539,-263.37136232,0.0004,120]
[358391663,1745055305565,-950.0,0.0004,30]
[358391664,1745055305590,-200.0,0.000405,43]
[358391665,1745055305614,-200.0,0.000405,43]
[358391666,1745055305639,-1183.79639324,0.00040658,120]
[358391667,1745055305666,-176.83604,0.00040888,30]
[358391668,1745055305693,-175.0,0.00041066,120]
[358391669,1745055305719,-175.0,0.0004107,120]
[358391670,1745055305744,-242.0,0.0004107,120]
[358391671,1745055305768,-175.0,0.00041076,120]
[358391672,1745055305792,-150.5,0.0004108,120]
[358391673,1745055305815,-175.0,0.0004108,120]
[358391674,1745055305838,-175.0,0.0004108,120]
[358391675,1745055305862,-180.73,0.0004108,120]
[358391676,1745055305885,-175.0,0.00041086,120]
[358391677,1745055305908,-176.83604,0.00041088,30]
[358391678,1745055305932,-150.5,0.0004109,120]
[358391679,1745055305956,-175.0,0.0004109,120]
[358391680,1745055305979,-175.0,0.0004109,120]
[358391681,1745055306015,-175.0,0.0004109,120]
[358391682,1745055306042,-190.02,0.00041096,30]
[358391683,1745055306067,-3083.92,0.00041096,120]
[358391684,1745055306094,-163.83,0.00041118,30]
[358391685,1745055306120,-176.83604,0.00041288,30]
[358391686,1745055306146,-176.83604,0.00041488,30]
[358391687,1745055306172,-200.0,0.000415,47]
[358391688,1745055306198,-200.0,0.000415,47]
[358391689,1745055306223,-176.83604,0.00041688,30]
[358391690,1745055306248,-618.53,0.00041781,30]
[358391691,1745055306274,-793.45,0.00041781,30]
[358391692,1745055306299,-249.68,0.00041781,30]
[358391693,1745055306324,-176.83604,0.00041888,30]
[358391694,1745055306350,-176.83604,0.00042088,30]
[358391695,1745055306374,-670.15,0.000422,30]
[358391696,1745055306397,-361.88,0.000422,30]
[358391697,1745055306422,-6269.79958394,0.000422,30]
[358391698,1745055306446,-176.83604,0.00042288,30]
[358391699,1745055306472,-176.83604,0.00042488,30]
[358391700,1745055306496,-2041.434434,0.00042499,120]
[358391701,1745055306519,-347.209507,0.00042499,120]
[358391702,1745055306544,-200.0,0.000425,51]
[358391703,1745055306568,-200.0,0.000425,51]
[358391704,1745055306593,-10000.0,0.000425,120]
[358391705,1745055306617,-176.83604,0.00042688,30]
[358391706,1745055306642,-176.83604,0.00042888,30]
[358391707,1745055306667,-526.74272463,0.00043,120]
[358391708,1745055306693,-313.74,0.00043065,30]
[358391709,1745055306717,-176.83604,0.00043088,30]
[358391710,1745055306743,-176.83604,0.00043288,30]
[358391711,1745055306769,-176.83604,0.00043488,30]
[358391712,1745055306793,-5000.0,0.000435,120]
[358391713,1745055306817,-338.1,0.000435,55]
[358391714,1745055306840,-338.099999,0.000435,55]
[358391715,1745055306863,-176.83604,0.00043688,30]
[358391716,1745055306886,-231.4176409,0.000437,120]
[358391717,1745055306909,-179.79,0.00043835,120]
[358391718,1745055306933,-176.83604,0.00044088,30]
[358391719,1745055306957,-176.83604,0.00044288,30]
[358391720,1745055306980,-241.0,0.0004433,30]
[358391721,1745055307003,-209.0,0.0004433,30]
[358391722,1745055307027,-176.83604,0.00044488,30]
[358391723,1745055307051,-5000.0,0.000445,120]
[358391724,1745055307077,-176.83604,0.00044688,30]
[358391725,1745055307105,-176.83604,0.00044888,30]
[358391726,1745055307129,-366.99222655,0.000449,30]
[358391727,1745055307155,-593.0,0.00045,120]
[358391728,1745055307180,-5037.43544848,0.00045,120]
[358391729,1745055307206,-160.1,0.00045,85]
[358391730,1745055307230,-10000.0,0.00045,120]
[358391731,1745055307255,-19838.77907207,0.00045,30]
[358391732,1745055307281,-2962.21028912,0.00045,120]
[358391733,1745055307306,-7023.1843356,0.00045,90]
[358391734,1745055307332,-151.0,0.00045,120]
[358391735,1745055307357,-176.83604,0.00045088,30]
[358391736,1745055307382,-958.721,0.00045136,73]
[358391737,1745055307407,-190.02,0.00045205,30]
[358391738,1745055307434,-176.83604,0.00045288,30]
[358391739,1745055307459,-176.83604,0.00045488,30]
[358391740,1745055307485,-5000.0,0.000455,120]
[358391741,1745055307509,-241.0,0.0004562,30]
[358391742,1745055307533,-209.0,0.0004562,30]
[358391743,1745055307560,-176.83604,0.00045688,30]
[358391744,1745055307586,-150.0,0.00045763,120]
[358391745,1745055307610,-176.83604,0.00045888,30]
[358391746,1745055307635,-500.0,0.000459,45]
[358391747,1745055307659,-600.61857831,0.000459,119]
[358391748,1745055307686,-658.42840579,0.00046,120]
[358391749,1745055307711,-1419.91,0.00046027,30]
[358391750,1745055307739,-176.83604,0.00046088,30]
[358391751,1745055307765,-176.83604,0.00046288,30]
[358391752,1745055307789,-150.0,0.0004642,120]
[358391753,1745055307813,-176.83604,0.00046488,30]
[358391754,1745055307838,-5000.0,0.000465,120]
[358391755,1745055307863,-2864.47,0.00046575,120]
[358391756,1745055307889,-176.83604,0.00046688,30]
[358391757,1745055307915,-176.83604,0.00046888,30]
[358391758,1745055307940,-241.0,0.0004691,30]
[358391759,1745055307965,-209.0,0.0004691,30]
[358391760,1745055307989,-500.0,0.00047,30]
[358391761,1745055308013,-10000.0,0.000475,120]
[358391762,1745055308038,-150.0,0.00047835,120]
[358391763,1745055308061,-318.0,0.00048,120]
[358391764,1745055308087,-658.42840577,0.00048,120]
[358391765,1745055308288,-1106.46620066,0.000482,120]
[358391766,1745055308317,-241.0,0.000482,30]
[358391767,1745055308343,-209.0,0.000482,30]
[358391768,1745055308369,-500.0,0.0004822,30]
[358391769,1745055308395,-1066.57190537,0.00048279,30]
[358391770,1745055308422,-1139.82,0.00048296,30]
[358391771,1745055308447,-900.0,0.00048417,30]
[358391772,1745055308473,-5000.0,0.000485,120]
[358391773,1745055308497,-500.0,0.00048566,30]
[358391774,1745055308523,-150.0,0.00048649,120]
[358391775,1745055308548,-500.0,0.00048814,30]
[358391776,1745055308573,-359.66374609,0.00049,120]
[358391777,1745055308597,-286.0,0.00049,120]
[358391778,1745055308623,-190.02,0.00049315,30]
[358391779,1745055308648,-500.0,0.00049317,30]
[358391780,1745055308674,-37216.66,0.000494,60]
[358391781,1745055308702,-213.02769736,0.000495,120]
[358391782,1745055308727,-5000.0,0.000495,120]
[358391783,1745055308752,-337796.66181055,0.000495,39]
[358391784,1745055308778,-476.0,0.00049589,60]
[358391785,1745055308803,-476.0,0.00049589,60]
[358391786,1745055308828,-476.0,0.00049589,60]
[358391787,1745055308852,-476.0,0.00049589,60]
[358391788,1745055308877,-476.0,0.00049589,60]
[358391789,1745055308902,-476.0,0.00049589,60]
[358391790,1745055308926,-476.0,0.00049589,60]
[358391791,1745055308951,-476.0,0.00049589,60]
[358391792,1745055308975,-476.0,0.00049589,60]
[358391793,1745055309000,-476.0,0.00049589,60]
[358391794,1745055309025,-277.0,0.00049589,60]
[358391795,1745055309048,-277.0,0.00049589,60]
[358391796,1745055309072,-277.0,0.00049589,60]
[358391797,1745055309096,-277.0,0.00049589,60]
[358391798,1745055309120,-277.0,0.00049589,60]
[358391799,1745055309144,-277.0,0.00049589,60]
[358391800,1745055309169,-277.0,0.00049589,60]
[358391801,1745055309192,-277.0,0.00049589,60]
[358391802,1745055309215,-277.0,0.00049589,60]
[358391803,1745055309239,-277.0,0.00049589,60]
[358391804,1745055309264,-476.0,0.00049589,60]
[358391805,1745055309287,-476.0,0.00049589,60]
[358391806,1745055309311,-476.0,0.00049589,60]
[358391807,1745055309336,-476.0,0.00049589,60]
[358391808,1745055309363,-476.0,0.00049589,60]
[358391809,1745055309390,-476.0,0.00049589,60]
[358391810,1745055309418,-476.0,0.00049589,60]
[358391811,1745055309444,-476.0,0.00049589,60]
[358391812,1745055309470,-476.0,0.00049589,60]
[358391813,1745055309494,-476.0,0.00049589,60]
[358391814,1745055309519,-476.0,0.00049589,60]
[358391815,1745055309544,-476.0,0.00049589,60]
[358391816,1745055309570,-476.0,0.00049589,60]
[358391817,1745055309596,-476.0,0.00049589,60]
[358391818,1745055309621,-277.0,0.00049589,60]
[358391819,1745055309646,-277.0,0.00049589,60]
[358391820,1745055309671,-277.0,0.00049589,60]
[358391821,1745055309699,-277.0,0.00049589,60]
[358391822,1745055309723,-277.0,0.00049589,60]
[358391823,1745055309748,-277.0,0.00049589,60]
[358391824,1745055309773,-277.0,0.00049589,60]
[358391825,1745055309797,-277.0,0.00049589,60]
[358391826,1745055309823,-277.0,0.00049589,60]
[358391827,1745055309848,-277.0,0.00049589,60]
[358391828,1745055309872,-277.0,0.00049589,60]
[358391829,1745055309896,-277.0,0.00049589,60]
[358391830,1745055309921,-277.0,0.00049589,60]
[358391831,1745055309945,-277.0,0.00049589,60]
[358391832,1745055309970,-476.0,0.00049589,60]
[358391833,1745055309994,-476.0,0.00049589,60]
[358391834,1745055310017,-476.0,0.00049589,60]
[358391835,1745055310041,-476.0,0.00049589,60]
[358391836,1745055310064,-476.0,0.00049589,60]
[358391837,1745055310088,-476.0,0.00049589,60]
[358391838,1745055310112,-476.0,0.00049589,60]
[358391839,1745055310136,-476.0,0.00049589,60]
[358391840,1745055310160,-476.0,0.00049589,60]
[358391841,1745055310185,-476.0,0.00049589,60]
[358391842,1745055310209,-476.0,0.00049589,60]
[358391843,1745055310234,-476.0,0.00049589,60]
[358391844,1745055310262,-476.0,0.00049589,60]
[358391845,1745055310286,-476.0,0.00049589,60]
[358391846,1745055310310,-277.0,0.00049589,60]
[358391847,1745055310333,-277.0,0.00049589,60]
[358391848,1745055310357,-277.0,0.00049589,60]
[358391849,1745055310383,-277.0,0.00049589,60]
[358391850,1745055310408,-277.0,0.00049589,60]
[358391851,1745055310433,-277.0,0.00049589,60]
[358391852,1745055310459,-277.0,0.00049589,60]
[358391853,1745055310483,-277.0,0.00049589,60]
[358391854,1745055310507,-277.0,0.00049589,60]
[358391855,1745055310531,-277.0,0.00049589,60]
[358391856,1745055310556,-277.0,0.00049589,60]
[358391857,1745055310581,-277.0,0.00049589,60]
[358391858,1745055310605,-277.0,0.00049589,60]
[358391859,1745055310629,-277.0,0.00049589,60]
[358391860,1745055310653,-476.0,0.00049589,60]
[358391861,1745055310679,-476.0,0.00049589,60]
[358391862,1745055310705,-476.0,0.00049589,60]
[358391863,1745055310728,-476.0,0.00049589,60]
[358391864,1745055310753,-476.0,0.00049589,60]
[358391865,1745055310776,-476.0,0.00049589,60]
[358391866,1745055310799,-476.0,0.00049589,60]
[358391867,1745055310822,-476.0,0.00049589,60]
[358391868,1745055310951,-476.0,0.00049589,60]
[358391869,1745055310998,-476.0,0.00049589,60]
[358391870,1745055311022,-476.0,0.00049589,60]
[358391871,1745055311046,-476.0,0.00049589,60]
[358391872,1745055311070,-476.0,0.00049589,60]
[358391873,1745055311094,-476.0,0.00049589,60]
[358391874,1745055311118,-476.0,0.00049589,60]
[358391875,1745055311141,-476.0,0.00049589,60]
[358391876,1745055311167,-476.0,0.00049589,60]
[358391877,1745055311191,-277.0,0.00049589,60]
[358391878,1745055311215,-277.0,0.00049589,60]
[358391879,1745055311244,-277.0,0.00049589,60]
[358391880,1745055311270,-277.0,0.00049589,60]
[358391881,1745055311296,-277.0,0.00049589,60]
[358391882,1745055311322,-277.0,0.00049589,60]
[358391883,1745055311348,-277.0,0.00049589,60]
[358391884,1745055311372,-277.0,0.00049589,60]
[358391885,1745055311396,-277.0,0.00049589,60]
[358391886,1745055311421,-277.0,0.00049589,60]
[358391887,1745055311445,-277.0,0.00049589,60]
[358391888,1745055311470,-277.0,0.00049589,60]
[358391889,1745055311495,-277.0,0.00049589,60]
[358391890,1745055311519,-277.0,0.00049589,60]
[358391891,1745055311543,-277.0,0.00049589,60]
[358391892,1745055311568,-277.0,0.00049589,60]
[358391893,1745055311592,-277.0,0.00049589,60]
[358391894,1745055311616,-476.0,0.00049589,60]
[358391895,1745055311641,-476.0,0.00049589,60]
[358391896,1745055311668,-476.0,0.00049589,60]
[358391897,1745055311698,-476.0,0.00049589,60]
[358391898,1745055311724,-476.0,0.00049589,60]
[358391899,1745055311749,-476.0,0.00049589,60]
[358391900,1745055311774,-476.0,0.00049589,60]
[358391901,1745055311799,-476.0,0.00049589,60]
[358391902,1745055311823,-476.0,0.00049589,60]
[358391903,1745055311848,-476.0,0.00049589,60]
[358391904,1745055311872,-476.0,0.00049589,60]
[358391905,1745055311897,-476.0,0.00049589,60]
[358391906,1745055311921,-476.0,0.00049589,60]
[358391907,1745055311946,-476.0,0.00049589,60]
[358391908,1745055311972,-277.0,0.00049589,60]
[358391909,1745055311995,-277.0,0.00049589,60]
[358391910,1745055312019,-277.0,0.00049589,60]
[358391911,1745055312043,-277.0,0.00049589,60]
[358391912,1745055312067,-277.0,0.00049589,60]
[358391913,1745055312091,-277.0,0.00049589,60]
[358391914,1745055312114,-277.0,0.00049589,60]
[358391915,1745055312138,-277.0,0.00049589,60]
[358391916,1745055312163,-277.0,0.00049589,60]
[358391917,1745055312187,-277.0,0.00049589,60]
[358391918,1745055312210,-277.0,0.00049589,60]
[358391919,1745055312234,-277.0,0.00049589,60]
[358391920,1745055312258,-277.0,0.00049589,60]
[358391921,1745055312282,-277.0,0.00049589,60]
[358391922,1745055312306,-476.0,0.00049589,60]
[358391923,1745055312330,-476.0,0.00049589,60]
[358391924,1745055312354,-476.0,0.00049589,60]
[358391925,1745055312377,-476.0,0.00049589,60]
[358391926,1745055312402,-476.0,0.00049589,60]
[358391927,1745055312427,-476.0,0.00049589,60]
[358391928,1745055312450,-476.0,0.00049589,60]
[358391929,1745055312474,-476.0,0.00049589,60]
[358391930,1745055312498,-476.0,0.00049589,60]
[358391931,1745055312523,-476.0,0.00049589,60]
[358391932,1745055312547,-476.0,0.00049589,60]
[358391933,1745055312571,-476.0,0.00049589,60]
[358391934,1745055312595,-476.0,0.00049589,60]
[358391935,1745055312620,-476.0,0.00049589,60]
[358391936,1745055312644,-277.0,0.00049589,60]
[358391937,1745055312668,-277.0,0.00049589,60]
[358391938,1745055312696,-277.0,0.00049589,60]
[358391939,1745055312720,-277.0,0.00049589,60]
[358391940,1745055312748,-277.0,0.00049589,60]
[358391941,1745055312775,-277.0,0.00049589,60]
[358391942,1745055312800,-277.0,0.00049589,60]
[358391943,1745055312824,-277.0,0.00049589,60]
[358391944,1745055312848,-277.0,0.00049589,60]
[358391945,1745055312873,-277.0,0.00049589,60]
[358391946,1745055312897,-277.0,0.00049589,60]
[358391947,1745055312920,-277.0,0.00049589,60]
[358391948,1745055312945,-277.0,0.00049589,60]
[358391949,1745055312968,-277.0,0.00049589,60]
[358391950,1745055312992,-500.0,0.00049707,30]
[358391951,1745055313016,-199.71446973,0.0004977,120]
[358391952,1745055313041,-482.39629318,0.0004995,60]
[358391953,1745055313065,-195.58982811,0.00049998,120]
[358391954,1745055313091,-150000.0,0.0005,60]
[358391955,1745055313115,-200.0,0.0005,81]
[358391956,1745055313138,-1756.1,0.0005,120]
[358391957,1745055313166,-785.3713035,0.0005,120]
[358391958,1745055313190,-165.98041639,0.0005,30]
[358391959,1745055313213,-294.47064367,0.0005,120]
[358391960,1745055313236,-179.52688159,0.0005,120]
[358391961,1745055313260,-1563.0006722,0.0005,120]
[358391962,1745055313284,-309.81121065,0.0005,30]
[358391963,1745055313307,-232.51456084,0.0005,120]
[358391964,1745055313332,-428.37,0.0005,120]
[358391965,1745055313356,-5000.0,0.0005,120]
[358391966,1745055313380,-300.0,0.0005,120]
[358391967,1745055313405,-220.0,0.0005,120]
[358391968,1745055313429,-222.0,0.0005,120]
[358391969,1745055313453,-3400.0,0.0005013,60]
[358391970,1745055313481,-500.0,0.00050344,60]
[358391971,1745055313506,-509.61455883,0.00050361,60]
[358391972,1745055313531,-5000.0,0.000505,120]
[358391973,1745055313764,-150.0,0.00050961,120]
[358391974,1745055313789,-1031.63244126,0.00051,120]
[358391975,1745055313814,-200.0,0.00051,85]
[358391976,1745055313838,-600.0,0.00051315,60]
[358391977,1745055313862,-200.0,0.00052,89]
[358391978,1745055313885,-811.1665083,0.00052,30]
[358391979,1745055313910,-220.0,0.00052,120]
[358391980,1745055313934,-150.0,0.00052016,120]
[358391981,1745055313959,-150.0,0.00052043,120]
[358391982,1745055313984,-150.0,0.00052485,120]
[358391983,1745055314008,-4080.21554109,0.000525,120]
[358391984,1745055314034,-150.0,0.00052876,120]
[358391985,1745055314058,-150.0,0.00052929,120]
[358391986,1745055314083,-37216.66,0.00053,60]
[358391987,1745055314108,-200.0,0.00053,92]
[358391988,1745055314133,-150.0,0.00053337,120]
[358391989,1745055314157,-600.0,0.00053612,60]
[358391990,1745055314182,-150.0,0.00053852,120]
[358391991,1745055314220,-500.0,0.00053895,60]
[358391992,1745055314248,-200.0,0.00054,96]
[358391993,1745055314274,-2654.94494625,0.00054,30]
[358391994,1745055314300,-915.1417185,0.00054,120]
[358391995,1745055314326,-220.0,0.00054,120]
[358391996,1745055314352,-532.60414342,0.00054794,120]
[358391997,1745055314377,-529.00972054,0.00054794,120]
[358391998,1745055314403,-1022.74128815,0.00054794,120]
[358391999,1745055314429,-500.0,0.00054794,120]
[358392000,1745055314454,-508.19311942,0.00054794,120]
[358392001,1745055314480,-500.0,0.00054794,120]
[358392002,1745055314507,-518.31747798,0.00054794,120]
[358392003,1745055314533,-643.47895204,0.00054794,120]
[358392004,1745055314559,-537.46281688,0.00054794,120]
[358392005,1745055314585,-505.61296028,0.00054794,120]
[358392006,1745055314611,-520.28450834,0.00054794,120]
[358392007,1745055314636,-500.0,0.00054794,120]
[358392008,1745055314664,-538.37223638,0.00054794,120]
[358392009,1745055314692,-569.62,0.00054794,120]
[358392010,1745055314726,-507.18224404,0.00054794,120]
[358392011,1745055314754,-513.90233737,0.00054794,120]
[358392012,1745055314780,-515.75492415,0.00054794,120]
[358392013,1745055314807,-510.44693384,0.00054794,120]
[358392014,1745055314832,-500.0,0.00054794,120]
[358392015,1745055314859,-518.52403661,0.00054794,120]
[358392016,1745055314885,-536.05270411,0.00054794,120]
[358392017,1745055314910,-401.11956433,0.00054794,120]
[358392018,1745055314935,-173.52791069,0.00054794,120]
[358392019,1745055314961,-523.94546641,0.00054794,120]
[358392020,1745055314986,-500.0,0.00054794,120]
[358392021,1745055315012,-297.56129292,0.00054794,120]
[358392022,1745055315037,-551.35305366,0.00054794,120]
[358392023,1745055315062,-529.39368674,0.00054794,120]
[358392024,1745055315087,-500.0,0.00054794,120]
[358392025,1745055315112,-500.0,0.00054794,120]
[358392026,1745055315139,-519.0588485,0.00054794,120]
[358392027,1745055315167,-500.0,0.00054794,120]
[358392028,1745055315192,-500.0,0.00054794,120]
[358392029,1745055315218,-531.44701322,0.00054794,120]
[358392030,1745055315243,-517.53103596,0.00054794,120]
[358392031,1745055315269,-389.36809477,0.00054794,120]
[358392032,1745055315293,-500.0,0.00054794,120]
[358392033,1745055315318,-517.05168975,0.00054794,120]
[358392034,1745055315343,-510.73823572,0.00054794,120]
[358392035,1745055315369,-541.57126434,0.00054794,120]
[358392036,1745055315394,-500.0,0.00054794,120]
[358392037,1745055315421,-536.09146563,0.00054794,120]
[358392038,1745055315448,-500.0,0.00054794,120]
[358392039,1745055315474,-500.0,0.00054794,120]
[358392040,1745055315500,-277.38663152,0.00054794,120]
[358392041,1745055315526,-555.81721484,0.00054794,120]
[358392042,1745055315553,-500.0,0.00054794,120]
[358392043,1745055315578,-500.0,0.00054794,120]
[358392044,1745055315603,-500.0,0.00054794,120]
[358392045,1745055315630,-519.119888,0.00054794,120]
[358392046,1745055315655,-500.0,0.00054794,120]
[358392047,1745055315682,-486.28051174,0.00054794,120]
[358392048,1745055315709,-500.0,0.00054794,120]
[358392049,1745055315735,-587.80914839,0.00054794,120]
[358392050,1745055315762,-500.0,0.00054794,120]
[358392051,1745055315788,-1000.0,0.00054794,35]
[358392052,1745055315814,-500.0,0.00054794,120]
[358392053,1745055315839,-500.0,0.00054794,120]
[358392054,1745055315864,-500.0,0.00054794,120]
[358392055,1745055315889,-341.7005925,0.00054794,120]
[358392056,1745055315916,-500.0,0.00054794,120]
[358392057,1745055315946,-536.32,0.00054794,120]
[358392058,1745055315972,-500.0,0.00054794,120]
[358392059,1745055315999,-500.0,0.00054794,120]
[358392060,1745055316026,-500.0,0.00054794,120]
[358392061,1745055316052,-500.0,0.00054794,120]
[358392062,1745055316077,-445.26993381,0.00054794,120]
[358392063,1745055316102,-500.0,0.00054794,120]
[358392064,1745055316127,-600.0,0.00054794,120]
[358392065,1745055316152,-500.0,0.00054794,120]
[358392066,1745055316179,-500.0,0.00054794,120]
[358392067,1745055316204,-500.0,0.00054794,120]
[358392068,1745055316229,-500.0,0.00054794,120]
[358392069,1745055316256,-186.66,0.00054794,120]
[358392070,1745055316282,-500.0,0.00054794,30]
[358392071,1745055316306,-500.0,0.00054794,120]
[358392072,1745055316331,-500.0,0.00054794,120]
[358392073,1745055316355,-512.71891909,0.00054794,120]
[358392074,1745055316380,-500.0,0.00054794,120]
[358392075,1745055316404,-500.0,0.00054794,120]
[358392076,1745055316430,-503.49888697,0.00054794,120]
[358392077,1745055316454,-500.0,0.00054794,120]
[358392078,1745055316634,-547.52950358,0.00054794,120]
[358392079,1745055316660,-500.0,0.00054794,120]
[358392080,1745055316688,-500.0,0.00054794,120]
[358392081,1745055316713,-500.0,0.00054794,120]
[358392082,1745055316741,-500.0,0.00054794,120]
[358392083,1745055316766,-500.0,0.00054794,120]
[358392084,1745055316792,-560.42541475,0.00054794,120]
[358392085,1745055316818,-500.0,0.00054794,120]
[358392086,1745055316842,-677.48,0.00054794,120]
[358392087,1745055316866,-677.48,0.00054794,120]
[358392088,1745055316890,-677.48,0.00054794,120]
[358392089,1745055316913,-677.48,0.00054794,120]
[358392090,1745055316937,-677.48,0.00054794,120]
[358392091,1745055316960,-677.48,0.00054794,120]
[358392092,1745055316984,-677.48,0.00054794,120]
[358392093,1745055317008,-500.0,0.00054794,120]
[358392094,1745055317031,-677.48,0.00054794,120]
[358392095,1745055317059,-677.48,0.00054794,120]
[358392096,1745055317082,-677.48,0.00054794,120]
[358392097,1745055317106,-677.48,0.00054794,120]
[358392098,1745055317130,-677.48,0.00054794,120]
[358392099,1745055317154,-677.48,0.00054794,120]
[358392100,1745055317178,-677.48,0.00054794,120]